[Event "Titled Tuesday Blitz March 08 Late 2022"]
[White "Piesik, Piotr"]
[Black "Ishbaev, Alibek"]
[WhiteFideId "1136194"]
[BlackFideId "14205017"]
[WhiteElo "2190"]
[BlackElo "2360"]
[Result "1-0"]
[Round "08"]
[TimeControl "180+1"]
[Date "2022.03.09"]
[WhiteClock "0:00:44"]
[BlackClock "0:01:28"]

1. Nf3 {[%clk 0:01:17]}  c5 {[%clk 0:02:57]} 2. g3 {[%clk 0:01:17]}  Nc6 {[%clk 0:02:57]} 3. Bg2 {[%clk 0:01:18]}  e5 {[%clk 0:02:57]} 4. O-O {[%clk 0:01:19]}  g6 {[%clk 0:02:58]} 5. c4 {[%clk 0:01:19]}  Bg7 {[%clk 0:02:58]} 6. Nc3 {[%clk 0:01:20]}  Nge7 {[%clk 0:02:59]} 7. Ne1 {[%clk 0:01:20]}  O-O {[%clk 0:03:00]} 8. Nc2 {[%clk 0:01:20]}  d6 {[%clk 0:03:00]} 9. Ne3 {[%clk 0:01:20]}  Be6 {[%clk 0:03:01]} 10. Ned5 {[%clk 0:01:21]}  Qd7 {[%clk 0:03:00]} 11. d3 {[%clk 0:01:21]}  Bh3 {[%clk 0:03:00]} 12. Rb1 {[%clk 0:01:16]}  Bxg2 {[%clk 0:03:00]} 13. Kxg2 {[%clk 0:01:17]}  Nxd5 {[%clk 0:03:00]} 14. Nxd5 {[%clk 0:01:16]}  Ne7 {[%clk 0:03:00]} 15. Nxe7+ {[%clk 0:01:15]}  Qxe7 {[%clk 0:03:00]} 16. b4 {[%clk 0:01:16]}  b6 {[%clk 0:02:57]} 17. Qa4 {[%clk 0:01:11]}  e4 {[%clk 0:02:56]} 18. Bf4 {[%clk 0:01:07]}  Rad8 {[%clk 0:02:55]} 19. Rbd1 {[%clk 0:01:04]}  Bc3 {[%clk 0:02:50]} 20. a3 {[%clk 0:01:01]}  d5 {[%clk 0:02:43]} 21. bxc5 {[%clk 0:00:58]}  Qxc5 {[%clk 0:02:30]} 22. cxd5 {[%clk 0:00:56]}  exd3 {[%clk 0:02:21]} 23. Rxd3 {[%clk 0:00:55]}  Rxd5 {[%clk 0:02:22]} 24. Rfd1 {[%clk 0:00:54]}  Rxd3 {[%clk 0:02:14]} 25. Rxd3 {[%clk 0:00:55]}  Bf6 {[%clk 0:02:07]} 26. Bd6 {[%clk 0:00:54]}  Qf5 {[%clk 0:01:36]} 27. Bxf8 {[%clk 0:00:54]}  Kxf8 {[%clk 0:01:37]} 28. Qxa7 {[%clk 0:00:50]}  Qe4+ {[%clk 0:01:35]} 29. Rf3 {[%clk 0:00:50]}  Kg7 {[%clk 0:01:32]} 30. Qxb6 {[%clk 0:00:50]}  Bd4 {[%clk 0:01:28]} 31. Qc7 {[%clk 0:00:45]}  Bf6 {[%clk 0:01:28]} 32. Qf4 {[%clk 0:00:44]} 1-0


[Site "https://www.chess.com"]

[Event "Titled Tuesday Blitz March 08 Late 2022"]
[White "Salinas Herrera, Pablo"]
[Black "Cardoso Cardoso, Jose Gabriel"]
[WhiteFideId "3407128"]
[BlackFideId "4430492"]
[WhiteElo "2541"]
[BlackElo "2451"]
[Result "1-0"]
[Round "08"]
[TimeControl "180+1"]
[Date "2022.03.08"]
[WhiteClock "0:00:58"]
[BlackClock "0:00:02"]

1. d4 {[%clk 0:03:00]}  Nf6 {[%clk 0:02:51]} 2. Nf3 {[%clk 0:03:00]}  g6 {[%clk 0:02:51]} 3. Bf4 {[%clk 0:03:00]}  Bg7 {[%clk 0:02:52]} 4. e3 {[%clk 0:03:01]}  d6 {[%clk 0:02:52]} 5. h3 {[%clk 0:03:00]}  O-O {[%clk 0:02:53]} 6. Be2 {[%clk 0:03:00]}  b6 {[%clk 0:02:52]} 7. O-O {[%clk 0:03:00]}  Bb7 {[%clk 0:02:52]} 8. Bh2 {[%clk 0:03:01]}  c5 {[%clk 0:02:52]} 9. c3 {[%clk 0:03:01]}  Nbd7 {[%clk 0:02:53]} 10. a4 {[%clk 0:03:01]}  a6 {[%clk 0:02:53]} 11. Re1 {[%clk 0:03:01]}  Ra7 {[%clk 0:02:51]} 12. Bf1 {[%clk 0:02:59]}  Qa8 {[%clk 0:02:50]} 13. Nbd2 {[%clk 0:03:00]}  Rc8 {[%clk 0:02:49]} 14. Qb3 {[%clk 0:02:57]}  Bd5 {[%clk 0:02:40]} 15. c4 {[%clk 0:02:53]}  Bb7 {[%clk 0:02:28]} 16. d5 {[%clk 0:02:50]}  b5 {[%clk 0:01:57]} 17. e4 {[%clk 0:02:45]}  bxc4 {[%clk 0:01:40]} 18. Nxc4 {[%clk 0:02:45]}  Rb8 {[%clk 0:01:35]} 19. Qc2 {[%clk 0:02:40]}  Ne8 {[%clk 0:01:32]} 20. Rab1 {[%clk 0:02:32]}  Bc8 {[%clk 0:01:27]} 21. b3 {[%clk 0:02:28]}  Rb4 {[%clk 0:01:26]} 22. Na5 {[%clk 0:02:25]}  Bb7 {[%clk 0:01:20]} 23. Nd2 {[%clk 0:02:22]}  Qd8 {[%clk 0:01:06]} 24. Ndc4 {[%clk 0:02:21]}  Nb6 {[%clk 0:01:06]} 25. Nxb7 {[%clk 0:02:15]}  Rxb7 {[%clk 0:01:03]} 26. Na5 {[%clk 0:02:15]}  Rc7 {[%clk 0:00:58]} 27. Nc6 {[%clk 0:02:13]}  Rxc6 {[%clk 0:00:47]} 28. dxc6 {[%clk 0:02:14]}  Bd4 {[%clk 0:00:46]} 29. Bxa6 {[%clk 0:02:10]}  Nc7 {[%clk 0:00:43]} 30. Bd3 {[%clk 0:02:05]}  Ne6 {[%clk 0:00:41]} 31. a5 {[%clk 0:01:59]}  Nc8 {[%clk 0:00:36]} 32. a6 {[%clk 0:01:59]}  Na7 {[%clk 0:00:35]} 33. Bc4 {[%clk 0:01:57]}  Nxc6 {[%clk 0:00:34]} 34. Qa2 {[%clk 0:01:57]}  Na7 {[%clk 0:00:33]} 35. Rbd1 {[%clk 0:01:45]}  Kg7 {[%clk 0:00:31]} 36. Qa3 {[%clk 0:01:42]}  Qb6 {[%clk 0:00:30]} 37. e5 {[%clk 0:01:37]}  dxe5 {[%clk 0:00:25]} 38. Bxe5+ {[%clk 0:01:37]}  Bxe5 {[%clk 0:00:25]} 39. Rxe5 {[%clk 0:01:38]}  Nc6 {[%clk 0:00:23]} 40. Re3 {[%clk 0:01:32]}  Ned4 {[%clk 0:00:24]} 41. a7 {[%clk 0:01:27]}  Nxa7 {[%clk 0:00:18]} 42. Rxe7 {[%clk 0:01:27]}  Rxc4 {[%clk 0:00:17]} 43. bxc4 {[%clk 0:01:24]}  Nac6 {[%clk 0:00:18]} 44. Re3 {[%clk 0:01:21]}  Nb4 {[%clk 0:00:16]} 45. Qc3 {[%clk 0:01:20]}  Nc6 {[%clk 0:00:14]} 46. Qd2 {[%clk 0:01:18]}  Qd8 {[%clk 0:00:14]} 47. Qd3 {[%clk 0:01:18]}  Qf6 {[%clk 0:00:14]} 48. Qe4 {[%clk 0:01:17]}  h5 {[%clk 0:00:12]} 49. Qd5 {[%clk 0:01:16]}  Nf5 {[%clk 0:00:06]} 50. Re4 {[%clk 0:01:12]}  Ncd4 {[%clk 0:00:03]} 51. Qxc5 {[%clk 0:01:11]}  Ne6 {[%clk 0:00:01]} 52. Qe5 {[%clk 0:01:11]}  Ng5 {[%clk 0:00:01]} 53. Qxf6+ {[%clk 0:01:11]}  Kxf6 {[%clk 0:00:02]} 54. Ree1 {[%clk 0:01:11]}  Ne6 {[%clk 0:00:03]} 55. Rd5 {[%clk 0:01:10]}  Ne7 {[%clk 0:00:02]} 56. Rd6 {[%clk 0:01:07]}  Nc8 {[%clk 0:00:02]} 57. c5 {[%clk 0:00:58]} 1-0


[Site "https://www.chess.com"]

[Event "Titled Tuesday Blitz March 08 Late 2022"]
[White "Sanal, Vahap"]
[Black "Bortnyk, Olexandr"]
[WhiteFideId "6300545"]
[BlackFideId "14120828"]
[WhiteElo "2603"]
[BlackElo "2723"]
[Result "0-1"]
[Round "08"]
[TimeControl "180+1"]
[Date "2022.03.08"]
[WhiteClock "0:01:26"]
[BlackClock "0:01:10"]

1. d4 {[%clk 0:03:00]}  d6 {[%clk 0:02:56]} 2. e4 {[%clk 0:03:00]}  Nf6 {[%clk 0:02:56]} 3. Bd3 {[%clk 0:02:59]}  e5 {[%clk 0:02:56]} 4. c3 {[%clk 0:03:00]}  Be7 {[%clk 0:02:55]} 5. Nf3 {[%clk 0:03:01]}  Nbd7 {[%clk 0:02:55]} 6. O-O {[%clk 0:03:00]}  h6 {[%clk 0:02:55]} 7. h3 {[%clk 0:03:00]}  c6 {[%clk 0:02:54]} 8. Be3 {[%clk 0:03:00]}  Qc7 {[%clk 0:02:53]} 9. Nbd2 {[%clk 0:03:00]}  g5 {[%clk 0:02:53]} 10. Re1 {[%clk 0:02:49]}  Nf8 {[%clk 0:02:48]} 11. Nh2 {[%clk 0:02:43]}  Ng6 {[%clk 0:02:46]} 12. Be2 {[%clk 0:02:39]}  Nf4 {[%clk 0:02:44]} 13. Bxf4 {[%clk 0:02:33]}  gxf4 {[%clk 0:02:44]} 14. Ng4 {[%clk 0:02:32]}  Nd7 {[%clk 0:02:18]} 15. Nh2 {[%clk 0:02:27]}  Rg8 {[%clk 0:02:11]} 16. Bg4 {[%clk 0:02:26]}  Nf6 {[%clk 0:02:08]} 17. Bf5 {[%clk 0:02:21]}  Bd7 {[%clk 0:02:02]} 18. dxe5 {[%clk 0:02:20]}  dxe5 {[%clk 0:01:52]} 19. Qb3 {[%clk 0:02:19]}  Rg7 {[%clk 0:01:28]} 20. Rad1 {[%clk 0:02:01]}  O-O-O {[%clk 0:01:26]} 21. Ng4 {[%clk 0:01:52]}  Bxf5 {[%clk 0:01:17]} 22. exf5 {[%clk 0:01:52]}  Nxg4 {[%clk 0:01:12]} 23. hxg4 {[%clk 0:01:52]}  Rxg4 {[%clk 0:01:13]} 24. Qxf7 {[%clk 0:01:47]}  Rdg8 {[%clk 0:01:12]} 25. Nf3 {[%clk 0:01:27]}  Rxg2+ {[%clk 0:01:11]} 26. Kf1 {[%clk 0:01:26]}  Rxf2+ {[%clk 0:01:10]} 0-1


[Site "https://www.chess.com"]

[Event "Titled Tuesday Blitz March 08 Late 2022"]
[White "Senft, Sean"]
[Black "Avazkhonov, Alikhon"]
[WhiteFideId "2044960"]
[BlackFideId "14208504"]
[WhiteElo "1881"]
[BlackElo "1739"]
[Result "1-0"]
[Round "08"]
[TimeControl "180+1"]
[Date "2022.03.09"]
[WhiteClock "0:00:11"]
[BlackClock "0:00:02"]

1. d4 {[%clk 0:03:00]}  d5 {[%clk 0:02:53]} 2. c4 {[%clk 0:03:01]}  e6 {[%clk 0:02:53]} 3. Nc3 {[%clk 0:03:01]}  c6 {[%clk 0:02:53]} 4. cxd5 {[%clk 0:03:00]}  exd5 {[%clk 0:02:53]} 5. Nf3 {[%clk 0:03:01]}  Bd6 {[%clk 0:02:51]} 6. Qc2 {[%clk 0:03:01]}  Nf6 {[%clk 0:02:49]} 7. Bg5 {[%clk 0:03:02]}  h6 {[%clk 0:02:45]} 8. Bh4 {[%clk 0:03:01]}  O-O {[%clk 0:02:45]} 9. e3 {[%clk 0:03:02]}  Re8 {[%clk 0:02:42]} 10. Bd3 {[%clk 0:03:02]}  Nbd7 {[%clk 0:02:40]} 11. O-O-O {[%clk 0:03:00]}  b5 {[%clk 0:02:26]} 12. Kb1 {[%clk 0:02:57]}  a5 {[%clk 0:02:02]} 13. g4 {[%clk 0:02:57]}  a4 {[%clk 0:01:41]} 14. g5 {[%clk 0:02:57]}  hxg5 {[%clk 0:01:40]} 15. Nxg5 {[%clk 0:02:48]}  Qa5 {[%clk 0:01:33]} 16. Rhg1 {[%clk 0:02:33]}  b4 {[%clk 0:01:29]} 17. Nxf7 {[%clk 0:02:05]}  Kxf7 {[%clk 0:01:01]} 18. Bg6+ {[%clk 0:02:05]}  Kf8 {[%clk 0:00:59]} 19. Bxe8 {[%clk 0:01:55]}  Nxe8 {[%clk 0:00:56]} 20. Qf5+ {[%clk 0:01:27]}  Ndf6 {[%clk 0:00:53]} 21. Qg6 {[%clk 0:01:22]}  bxc3 {[%clk 0:00:41]} 22. Bxf6 {[%clk 0:01:22]}  gxf6 {[%clk 0:00:29]} 23. Qh7 {[%clk 0:01:23]}  Bf5+ {[%clk 0:00:25]} 24. Qxf5 {[%clk 0:01:20]}  Qb4 {[%clk 0:00:22]} 25. Qc2 {[%clk 0:01:06]}  Rb8 {[%clk 0:00:20]} 26. Rg2 {[%clk 0:00:34]}  Qxb2+ {[%clk 0:00:16]} 27. Qxb2 {[%clk 0:00:34]}  Rxb2+ {[%clk 0:00:15]} 28. Ka1 {[%clk 0:00:34]}  a3 {[%clk 0:00:15]} 29. Rc1 {[%clk 0:00:34]}  c2 {[%clk 0:00:15]} 30. f4 {[%clk 0:00:35]}  Ke7 {[%clk 0:00:03]} 31. Rgxc2 {[%clk 0:00:35]}  Rxc2 {[%clk 0:00:04]} 32. Rxc2 {[%clk 0:00:36]}  Kd7 {[%clk 0:00:04]} 33. h4 {[%clk 0:00:35]}  Ng7 {[%clk 0:00:05]} 34. Rg2 {[%clk 0:00:34]}  Nf5 {[%clk 0:00:05]} 35. h5 {[%clk 0:00:33]}  Bf8 {[%clk 0:00:03]} 36. Rg8 {[%clk 0:00:31]}  Ke7 {[%clk 0:00:02]} 37. Kb1 {[%clk 0:00:29]}  Kf7 {[%clk 0:00:03]} 38. Rg1 {[%clk 0:00:26]}  Nxe3 {[%clk 0:00:03]} 39. Rc1 {[%clk 0:00:27]}  Nc4 {[%clk 0:00:03]} 40. Rg1 {[%clk 0:00:26]}  f5 {[%clk 0:00:02]} 41. Rg5 {[%clk 0:00:24]}  Kf6 {[%clk 0:00:02]} 42. Rg6+ {[%clk 0:00:25]}  Kf7 {[%clk 0:00:02]} 43. Rxc6 {[%clk 0:00:26]}  Nd2+ {[%clk 0:00:03]} 44. Kc2 {[%clk 0:00:26]}  Nf3 {[%clk 0:00:03]} 45. Kd3 {[%clk 0:00:23]}  Ne1+ {[%clk 0:00:03]} 46. Ke2 {[%clk 0:00:22]}  Ng2 {[%clk 0:00:02]} 47. Kf3 {[%clk 0:00:22]}  Ne1+ {[%clk 0:00:02]} 48. Kg3 {[%clk 0:00:13]}  Nd3 {[%clk 0:00:02]} 49. Ra6 {[%clk 0:00:14]}  Nc1 {[%clk 0:00:02]} 50. h6 {[%clk 0:00:13]}  Nxa2 {[%clk 0:00:02]} 51. Ra7+ {[%clk 0:00:14]}  Kg8 {[%clk 0:00:02]} 52. Ra8 {[%clk 0:00:12]}  Nb4 {[%clk 0:00:01]} 53. h7+ {[%clk 0:00:13]}  Kxh7 {[%clk 0:00:01]} 54. Rxf8 {[%clk 0:00:13]}  a2 {[%clk 0:00:01]} 55. Ra8 {[%clk 0:00:14]}  Kg6 {[%clk 0:00:02]} 56. Kf3 {[%clk 0:00:12]}  Kf6 {[%clk 0:00:02]} 57. Ke2 {[%clk 0:00:11]}  Nc2 {[%clk 0:00:02]} 58. Rxa2 {[%clk 0:00:11]}  Nxd4+ {[%clk 0:00:02]} 59. Kd3 {[%clk 0:00:09]}  Ne6 {[%clk 0:00:03]} 60. Ra6 {[%clk 0:00:08]}  Kf7 {[%clk 0:00:03]} 61. Ke3 {[%clk 0:00:09]}  d4+ {[%clk 0:00:02]} 62. Kf3 {[%clk 0:00:09]}  Nc5 {[%clk 0:00:02]} 63. Rd6 {[%clk 0:00:08]}  d3 {[%clk 0:00:02]} 64. Rd5 {[%clk 0:00:09]}  Ne4 {[%clk 0:00:01]} 65. Rxf5+ {[%clk 0:00:09]}  Ke6 {[%clk 0:00:01]} 66. Kxe4 {[%clk 0:00:10]}  d2 {[%clk 0:00:02]} 67. Rd5 {[%clk 0:00:11]} 1-0


[Site "https://www.chess.com"]

[Event "Titled Tuesday Blitz March 08 Late 2022"]
[White "Szpar, Milosz"]
[Black "Martin Duque, Jesus"]
[WhiteFideId "1184989"]
[BlackFideId "2208954"]
[WhiteElo "2447"]
[BlackElo "2243"]
[Result "0-1"]
[Round "08"]
[TimeControl "180+1"]
[Date "2022.03.08"]
[WhiteClock "0:02:10"]
[BlackClock "0:01:57"]

1. e4 {[%clk 0:02:50]}  c5 {[%clk 0:02:59]} 2. c3 {[%clk 0:02:49]}  Nf6 {[%clk 0:02:58]} 3. e5 {[%clk 0:02:49]}  Nd5 {[%clk 0:02:58]} 4. d4 {[%clk 0:02:50]}  cxd4 {[%clk 0:02:57]} 5. cxd4 {[%clk 0:02:49]}  e6 {[%clk 0:02:57]} 6. Nf3 {[%clk 0:02:49]}  b6 {[%clk 0:02:57]} 7. Bd2 {[%clk 0:02:48]}  Bb7 {[%clk 0:02:56]} 8. Bd3 {[%clk 0:02:49]}  Be7 {[%clk 0:02:55]} 9. h4 {[%clk 0:02:48]}  Na6 {[%clk 0:02:55]} 10. Nc3 {[%clk 0:02:48]}  Nac7 {[%clk 0:02:54]} 11. Qe2 {[%clk 0:02:47]}  Nxc3 {[%clk 0:02:54]} 12. Bxc3 {[%clk 0:02:47]}  Nd5 {[%clk 0:02:53]} 13. Bd2 {[%clk 0:02:46]}  Rc8 {[%clk 0:02:40]} 14. a3 {[%clk 0:02:43]}  h6 {[%clk 0:02:36]} 15. g4 {[%clk 0:02:42]}  d6 {[%clk 0:02:33]} 16. Kf1 {[%clk 0:02:41]}  dxe5 {[%clk 0:02:29]} 17. Nxe5 {[%clk 0:02:42]}  Nf4 {[%clk 0:02:13]} 18. Bxf4 {[%clk 0:02:41]}  Bxh1 {[%clk 0:02:14]} 19. f3 {[%clk 0:02:41]}  Qxd4 {[%clk 0:02:13]} 20. Bb5+ {[%clk 0:02:39]}  Kf8 {[%clk 0:02:13]} 21. Nd7+ {[%clk 0:02:39]}  Kg8 {[%clk 0:02:13]} 22. Be5 {[%clk 0:02:40]}  Qd5 {[%clk 0:02:01]} 23. Rd1 {[%clk 0:02:29]}  Qxf3+ {[%clk 0:02:01]} 24. Qxf3 {[%clk 0:02:29]}  Bxf3 {[%clk 0:02:02]} 25. Rd4 {[%clk 0:02:30]}  Bxh4 {[%clk 0:01:58]} 26. Rf4 {[%clk 0:02:10]}  Rc1# {[%clk 0:01:57]} 0-1


[Site "https://www.chess.com"]

[Event "Titled Tuesday Blitz March 08 Late 2022"]
[White "Van Foreest, Jorden"]
[Black "Koellner, Ruben Gideon"]
[WhiteFideId "1039784"]
[BlackFideId "12993093"]
[WhiteElo "2609"]
[BlackElo "2457"]
[Result "1/2-1/2"]
[Round "08"]
[TimeControl "180+1"]
[Date "2022.03.08"]
[WhiteClock "0:00:04"]
[BlackClock "0:00:02"]

1. Nf3 {[%clk 0:02:59]}  d6 {[%clk 0:02:56]} 2. d4 {[%clk 0:03:00]}  Nf6 {[%clk 0:02:55]} 3. Nc3 {[%clk 0:03:00]}  Nbd7 {[%clk 0:02:52]} 4. e4 {[%clk 0:03:00]}  e5 {[%clk 0:02:53]} 5. Bc4 {[%clk 0:03:00]}  Be7 {[%clk 0:02:51]} 6. a4 {[%clk 0:03:00]}  c6 {[%clk 0:02:33]} 7. O-O {[%clk 0:02:59]}  h6 {[%clk 0:02:33]} 8. Re1 {[%clk 0:02:57]}  Qc7 {[%clk 0:02:32]} 9. a5 {[%clk 0:02:47]}  Nf8 {[%clk 0:02:31]} 10. d5 {[%clk 0:02:46]}  Ng6 {[%clk 0:02:30]} 11. a6 {[%clk 0:02:46]}  b5 {[%clk 0:02:30]} 12. Bb3 {[%clk 0:02:41]}  b4 {[%clk 0:02:31]} 13. Ba4 {[%clk 0:02:41]}  Bd7 {[%clk 0:02:29]} 14. dxc6 {[%clk 0:02:42]}  Bxc6 {[%clk 0:02:30]} 15. Nd5 {[%clk 0:02:42]}  Nxd5 {[%clk 0:02:29]} 16. Qxd5 {[%clk 0:02:43]}  Rc8 {[%clk 0:02:29]} 17. Bxc6+ {[%clk 0:02:34]}  Qxc6 {[%clk 0:02:30]} 18. Qxc6+ {[%clk 0:02:33]}  Rxc6 {[%clk 0:02:31]} 19. Be3 {[%clk 0:02:33]}  O-O {[%clk 0:02:31]} 20. Ra4 {[%clk 0:02:29]}  Rxc2 {[%clk 0:02:20]} 21. Rxb4 {[%clk 0:02:29]}  d5 {[%clk 0:02:20]} 22. Rb7 {[%clk 0:02:22]}  d4 {[%clk 0:02:20]} 23. Bd2 {[%clk 0:02:23]}  Bc5 {[%clk 0:01:48]} 24. Rc7 {[%clk 0:02:22]}  d3 {[%clk 0:01:38]} 25. b4 {[%clk 0:02:12]}  Bxf2+ {[%clk 0:01:36]} 26. Kxf2 {[%clk 0:02:12]}  Rxc7 {[%clk 0:01:37]} 27. Ke3 {[%clk 0:02:04]}  Nf4 {[%clk 0:01:35]} 28. Rb1 {[%clk 0:01:47]}  Nxg2+ {[%clk 0:00:57]} 29. Kf2 {[%clk 0:01:48]}  Nf4 {[%clk 0:00:56]} 30. Nxe5 {[%clk 0:01:49]}  Ne6 {[%clk 0:00:46]} 31. b5 {[%clk 0:01:49]}  Nc5 {[%clk 0:00:36]} 32. Kf3 {[%clk 0:01:41]}  Re8 {[%clk 0:00:35]} 33. Bf4 {[%clk 0:01:30]}  Ne6 {[%clk 0:00:18]} 34. Be3 {[%clk 0:01:27]}  Ng5+ {[%clk 0:00:16]} 35. Bxg5 {[%clk 0:01:27]}  hxg5 {[%clk 0:00:16]} 36. Nc6 {[%clk 0:01:25]}  Re6 {[%clk 0:00:12]} 37. Nd4 {[%clk 0:01:00]}  Rd6 {[%clk 0:00:11]} 38. Nf5 {[%clk 0:00:47]}  Rd8 {[%clk 0:00:11]} 39. Ne3 {[%clk 0:00:48]}  d2 {[%clk 0:00:11]} 40. Rd1 {[%clk 0:00:39]}  Rc1 {[%clk 0:00:10]} 41. Ke2 {[%clk 0:00:40]}  Rxd1 {[%clk 0:00:10]} 42. Nxd1 {[%clk 0:00:40]}  Rd4 {[%clk 0:00:08]} 43. Nc3 {[%clk 0:00:40]}  Kf8 {[%clk 0:00:07]} 44. Kd1 {[%clk 0:00:36]}  Ke7 {[%clk 0:00:06]} 45. Nd5+ {[%clk 0:00:33]}  Kd6 {[%clk 0:00:05]} 46. b6 {[%clk 0:00:32]}  axb6 {[%clk 0:00:03]} 47. a7 {[%clk 0:00:30]}  Ra4 {[%clk 0:00:03]} 48. Nxb6 {[%clk 0:00:30]}  Rxa7 {[%clk 0:00:02]} 49. Nc8+ {[%clk 0:00:31]}  Ke5 {[%clk 0:00:02]} 50. Nxa7 {[%clk 0:00:31]}  Kxe4 {[%clk 0:00:03]} 51. Ke2 {[%clk 0:00:24]}  f5 {[%clk 0:00:02]} 52. Nb5 {[%clk 0:00:24]}  g4 {[%clk 0:00:02]} 53. Nc3+ {[%clk 0:00:14]}  Kf4 {[%clk 0:00:02]} 54. Kxd2 {[%clk 0:00:14]}  Kg5 {[%clk 0:00:03]} 55. Ke3 {[%clk 0:00:14]}  f4+ {[%clk 0:00:02]} 56. Ke4 {[%clk 0:00:11]}  g3 {[%clk 0:00:02]} 57. h3 {[%clk 0:00:04]}  g2 {[%clk 0:00:01]} 58. Ne2 {[%clk 0:00:03]}  Kh4 {[%clk 0:00:02]} 59. Kf3 {[%clk 0:00:01]}  Kxh3 {[%clk 0:00:01]} 60. Nxf4+ {[%clk 0:00:02]}  Kh2 {[%clk 0:00:02]} 61. Nxg2 {[%clk 0:00:02]}  g5 {[%clk 0:00:02]} 62. Ne3 {[%clk 0:00:03]}  g4+ {[%clk 0:00:02]} 63. Nxg4+ {[%clk 0:00:04]} 1/2-1/2


[Site "https://www.chess.com"]

[Event "Titled Tuesday Blitz March 08 Late 2022"]
[White "Warakomska, Anna"]
[Black "Baker, Chris W"]
[WhiteFideId "1130790"]
[BlackFideId "401676"]
[WhiteElo "2062"]
[BlackElo "2263"]
[Result "1/2-1/2"]
[Round "08"]
[TimeControl "180+1"]
[Date "2022.03.09"]
[WhiteClock "0:00:15"]
[BlackClock "0:00:35"]

1. e4 {[%clk 0:03:00]}  e5 {[%clk 0:03:00]} 2. Nf3 {[%clk 0:03:00]}  Nc6 {[%clk 0:03:00]} 3. Bb5 {[%clk 0:03:00]}  a6 {[%clk 0:03:00]} 4. Ba4 {[%clk 0:02:59]}  Nf6 {[%clk 0:02:59]} 5. O-O {[%clk 0:02:59]}  Be7 {[%clk 0:02:59]} 6. d3 {[%clk 0:02:58]}  b5 {[%clk 0:02:59]} 7. Bb3 {[%clk 0:02:58]}  O-O {[%clk 0:02:59]} 8. Nc3 {[%clk 0:02:57]}  d6 {[%clk 0:02:57]} 9. a3 {[%clk 0:02:57]}  Bg4 {[%clk 0:02:55]} 10. Be3 {[%clk 0:02:57]}  Nd4 {[%clk 0:02:46]} 11. Bxd4 {[%clk 0:02:57]}  exd4 {[%clk 0:02:46]} 12. Nd5 {[%clk 0:02:57]}  c6 {[%clk 0:02:36]} 13. Nxf6+ {[%clk 0:02:51]}  Bxf6 {[%clk 0:02:36]} 14. h3 {[%clk 0:02:52]}  Be6 {[%clk 0:02:33]} 15. Bxe6 {[%clk 0:02:36]}  fxe6 {[%clk 0:02:32]} 16. a4 {[%clk 0:02:06]}  c5 {[%clk 0:02:25]} 17. e5 {[%clk 0:01:45]}  Bxe5 {[%clk 0:02:21]} 18. Nxe5 {[%clk 0:01:43]}  dxe5 {[%clk 0:02:21]} 19. Qe2 {[%clk 0:01:35]}  Qd5 {[%clk 0:02:12]} 20. Rfe1 {[%clk 0:01:31]}  bxa4 {[%clk 0:02:03]} 21. Rxa4 {[%clk 0:01:29]}  Rf5 {[%clk 0:01:58]} 22. Rea1 {[%clk 0:01:21]}  Qb7 {[%clk 0:01:37]} 23. Qe4 {[%clk 0:01:13]}  Rf7 {[%clk 0:01:29]} 24. b3 {[%clk 0:00:54]}  Qxe4 {[%clk 0:01:19]} 25. dxe4 {[%clk 0:00:54]}  Rfa7 {[%clk 0:01:17]} 26. Rc4 {[%clk 0:00:53]}  Rc7 {[%clk 0:01:15]} 27. Ra5 {[%clk 0:00:53]}  Kf7 {[%clk 0:01:03]} 28. b4 {[%clk 0:00:39]}  Rb8 {[%clk 0:00:57]} 29. bxc5 {[%clk 0:00:34]}  Rb5 {[%clk 0:00:53]} 30. Rxa6 {[%clk 0:00:25]}  Rbxc5 {[%clk 0:00:52]} 31. Rxc5 {[%clk 0:00:25]}  Rxc5 {[%clk 0:00:52]} 32. Ra2 {[%clk 0:00:23]}  Rc3 {[%clk 0:00:52]} 33. Kf1 {[%clk 0:00:23]}  d3 {[%clk 0:00:45]} 34. cxd3 {[%clk 0:00:23]}  Rxd3 {[%clk 0:00:45]} 35. Ke2 {[%clk 0:00:24]}  Rb3 {[%clk 0:00:44]} 36. Ra7+ {[%clk 0:00:16]}  Kf6 {[%clk 0:00:44]} 37. Rd7 {[%clk 0:00:15]}  h5 {[%clk 0:00:40]} 38. h4 {[%clk 0:00:14]}  Rb2+ {[%clk 0:00:35]} 39. Ke3 {[%clk 0:00:14]}  Rb3+ {[%clk 0:00:35]} 40. Ke2 {[%clk 0:00:14]}  Rb2+ {[%clk 0:00:35]} 41. Ke3 {[%clk 0:00:15]}  Rb3+ {[%clk 0:00:35]} 42. Ke2 {[%clk 0:00:15]} 1/2-1/2


[Site "https://www.chess.com"]

[Event "Titled Tuesday Blitz March 08 Late 2022"]
[White "Xiong, Jeffery"]
[Black "Tari, Aryan"]
[WhiteFideId "2047640"]
[BlackFideId "1510045"]
[WhiteElo "2727"]
[BlackElo "2567"]
[Result "0-1"]
[Round "08"]
[TimeControl "180+1"]
[Date "2022.03.08"]
[WhiteClock "0:00:02"]
[BlackClock "0:00:14"]

1. e4 {[%clk 0:02:56]}  c6 {[%clk 0:02:58]} 2. d4 {[%clk 0:02:55]}  d5 {[%clk 0:02:58]} 3. e5 {[%clk 0:02:56]}  Bf5 {[%clk 0:02:58]} 4. Nf3 {[%clk 0:02:56]}  e6 {[%clk 0:02:59]} 5. Be2 {[%clk 0:02:57]}  Ne7 {[%clk 0:02:53]} 6. c3 {[%clk 0:02:57]}  Ng6 {[%clk 0:02:53]} 7. h4 {[%clk 0:02:41]}  h6 {[%clk 0:02:41]} 8. a4 {[%clk 0:02:31]}  Nd7 {[%clk 0:02:34]} 9. Na3 {[%clk 0:02:30]}  f6 {[%clk 0:02:27]} 10. h5 {[%clk 0:02:18]}  Ne7 {[%clk 0:02:27]} 11. exf6 {[%clk 0:02:19]}  gxf6 {[%clk 0:02:28]} 12. Nc2 {[%clk 0:02:16]}  Bg7 {[%clk 0:02:26]} 13. Ne3 {[%clk 0:02:15]}  Bh7 {[%clk 0:02:20]} 14. Bd3 {[%clk 0:02:15]}  Bxd3 {[%clk 0:02:20]} 15. Qxd3 {[%clk 0:02:16]}  O-O {[%clk 0:02:17]} 16. Rh3 {[%clk 0:02:12]}  e5 {[%clk 0:02:15]} 17. Qe2 {[%clk 0:01:34]}  e4 {[%clk 0:01:57]} 18. Nh4 {[%clk 0:01:34]}  f5 {[%clk 0:01:57]} 19. g3 {[%clk 0:01:35]}  c5 {[%clk 0:01:52]} 20. dxc5 {[%clk 0:01:11]}  Nxc5 {[%clk 0:01:51]} 21. Neg2 {[%clk 0:01:12]}  d4 {[%clk 0:01:42]} 22. cxd4 {[%clk 0:01:11]}  Qxd4 {[%clk 0:01:31]} 23. Nf4 {[%clk 0:00:51]}  Nd5 {[%clk 0:01:26]} 24. Kf1 {[%clk 0:00:41]}  Nxf4 {[%clk 0:00:54]} 25. Bxf4 {[%clk 0:00:42]}  Nd3 {[%clk 0:00:53]} 26. Rd1 {[%clk 0:00:11]}  Rac8 {[%clk 0:00:52]} 27. Ng6 {[%clk 0:00:09]}  Rfe8 {[%clk 0:00:46]} 28. g4 {[%clk 0:00:09]}  Qxa4 {[%clk 0:00:39]} 29. gxf5 {[%clk 0:00:06]}  Rc2 {[%clk 0:00:39]} 30. Bd2 {[%clk 0:00:06]}  Rxb2 {[%clk 0:00:35]} 31. f6 {[%clk 0:00:03]}  Bxf6 {[%clk 0:00:29]} 32. Qg4 {[%clk 0:00:04]}  Nxf2 {[%clk 0:00:25]} 33. Kxf2 {[%clk 0:00:01]}  e3+ {[%clk 0:00:25]} 34. Kg3 {[%clk 0:00:02]}  Qxg4+ {[%clk 0:00:23]} 35. Kxg4 {[%clk 0:00:03]}  Rxd2 {[%clk 0:00:22]} 36. Rxe3 {[%clk 0:00:02]}  Rxd1 {[%clk 0:00:18]} 37. Rxe8+ {[%clk 0:00:03]}  Kf7 {[%clk 0:00:19]} 38. Rb8 {[%clk 0:00:04]}  Rg1+ {[%clk 0:00:18]} 39. Kf5 {[%clk 0:00:01]}  Rf1+ {[%clk 0:00:16]} 40. Ke4 {[%clk 0:00:01]}  Rb1 {[%clk 0:00:15]} 41. Nf4 {[%clk 0:00:01]}  Rb4+ {[%clk 0:00:15]} 42. Kf5 {[%clk 0:00:02]}  Rb5+ {[%clk 0:00:15]} 43. Kg4 {[%clk 0:00:02]}  Be5 {[%clk 0:00:14]} 0-1


[Site "https://www.chess.com"]